[Event "Titled Tuesday Blitz December 13 Early 2022"]
[White "Avinash, Ramesh"]
[Black "Araujo Sanchez, Josue"]
[WhiteFideId "45018340"]
[BlackFideId "6416896"]
[WhiteElo "2264"]
[BlackElo "2370"]
[Result "1-0"]
[Round "09"]
[TimeControl "180+1"]
[Date "2022.12.13"]
[WhiteClock "0:01:06"]
[BlackClock "0:00:23"]

1. e4 {[%clk 0:03:00]}  c5 {[%clk 0:02:56]} 2. Nc3 {[%clk 0:03:00]}  g6 {[%clk 0:02:55]} 3. d4 {[%clk 0:02:58]}  cxd4 {[%clk 0:02:56]} 4. Qxd4 {[%clk 0:02:59]}  Nf6 {[%clk 0:02:55]} 5. Nf3 {[%clk 0:02:59]}  Nc6 {[%clk 0:02:55]} 6. Qa4 {[%clk 0:02:59]}  d6 {[%clk 0:02:48]} 7. e5 {[%clk 0:02:58]}  dxe5 {[%clk 0:02:49]} 8. Nxe5 {[%clk 0:02:58]}  Bd7 {[%clk 0:02:50]} 9. Nxd7 {[%clk 0:02:58]}  Nxd7 {[%clk 0:02:50]} 10. Be3 {[%clk 0:02:48]}  Bg7 {[%clk 0:02:50]} 11. O-O-O {[%clk 0:02:46]}  O-O {[%clk 0:02:50]} 12. h4 {[%clk 0:02:44]}  Qc8 {[%clk 0:02:31]} 13. h5 {[%clk 0:02:42]}  Nb6 {[%clk 0:02:31]} 14. Qh4 {[%clk 0:02:37]}  Bf6 {[%clk 0:02:23]} 15. Bg5 {[%clk 0:02:31]}  Qf5 {[%clk 0:02:03]} 16. Bxf6 {[%clk 0:02:28]}  Qxf6 {[%clk 0:02:00]} 17. hxg6 {[%clk 0:02:26]}  Qxh4 {[%clk 0:01:57]} 18. gxf7+ {[%clk 0:02:24]}  Rxf7 {[%clk 0:01:58]} 19. Rxh4 {[%clk 0:02:24]}  Rxf2 {[%clk 0:01:58]} 20. Ne4 {[%clk 0:02:05]}  Rff8 {[%clk 0:01:51]} 21. Ng5 {[%clk 0:02:00]}  Rad8 {[%clk 0:01:44]} 22. Bd3 {[%clk 0:01:56]}  Ne5 {[%clk 0:01:37]} 23. Bxh7+ {[%clk 0:01:54]}  Kh8 {[%clk 0:01:31]} 24. Bf5+ {[%clk 0:01:47]}  Kg8 {[%clk 0:01:28]} 25. Bh7+ {[%clk 0:01:38]}  Kh8 {[%clk 0:01:01]} 26. Rdh1 {[%clk 0:01:36]}  Rd6 {[%clk 0:00:55]} 27. Bd3+ {[%clk 0:01:29]}  Kg7 {[%clk 0:00:41]} 28. Rh7+ {[%clk 0:01:28]}  Kf6 {[%clk 0:00:39]} 29. Ne4+ {[%clk 0:01:28]}  Ke6 {[%clk 0:00:39]} 30. Nxd6 {[%clk 0:01:27]}  Kxd6 {[%clk 0:00:40]} 31. Be4 {[%clk 0:01:20]}  Rf2 {[%clk 0:00:30]} 32. b3 {[%clk 0:01:14]}  Ng4 {[%clk 0:00:25]} 33. Rd1+ {[%clk 0:01:10]}  Kc5 {[%clk 0:00:23]} 34. Rxe7 {[%clk 0:01:06]} 1-0


[Site "https://www.chess.com"]

[Event "Titled Tuesday Blitz December 13 Early 2022"]
[White "Baruch, Liam"]
[Black "Chernomordik, Pavel"]
[WhiteFideId "14322064"]
[BlackFideId "2804530"]
[WhiteElo "2080"]
[BlackElo "2193"]
[Result "0-1"]
[Round "09"]
[TimeControl "180+1"]
[Date "2022.12.14"]
[WhiteClock "0:00:05"]
[BlackClock "0:00:03"]

1. e4 {[%clk 0:03:00]}  g6 {[%clk 0:02:59]} 2. d4 {[%clk 0:02:58]}  Bg7 {[%clk 0:02:58]} 3. Be3 {[%clk 0:02:58]}  d6 {[%clk 0:02:51]} 4. Nc3 {[%clk 0:02:57]}  a6 {[%clk 0:02:50]} 5. f3 {[%clk 0:02:56]}  b5 {[%clk 0:02:50]} 6. Qd2 {[%clk 0:02:55]}  Bb7 {[%clk 0:02:50]} 7. Nge2 {[%clk 0:02:46]}  Nd7 {[%clk 0:02:49]} 8. d5 {[%clk 0:02:35]}  c5 {[%clk 0:02:47]} 9. dxc6 {[%clk 0:02:34]}  Bxc6 {[%clk 0:02:46]} 10. Nd4 {[%clk 0:02:34]}  Bb7 {[%clk 0:02:46]} 11. a4 {[%clk 0:02:31]}  b4 {[%clk 0:02:45]} 12. Nd5 {[%clk 0:02:30]}  a5 {[%clk 0:02:45]} 13. Bb5 {[%clk 0:02:09]}  Bxd5 {[%clk 0:02:15]} 14. exd5 {[%clk 0:02:08]}  Nf6 {[%clk 0:02:15]} 15. Nc6 {[%clk 0:01:50]}  Qc7 {[%clk 0:02:12]} 16. O-O {[%clk 0:01:49]}  O-O {[%clk 0:00:57]} 17. Nxe7+ {[%clk 0:01:46]}  Kh8 {[%clk 0:00:56]} 18. Nc6 {[%clk 0:01:33]}  Nb6 {[%clk 0:00:49]} 19. Bxb6 {[%clk 0:01:21]}  Qxb6+ {[%clk 0:00:49]} 20. Kh1 {[%clk 0:01:20]}  Qc5 {[%clk 0:00:48]} 21. Rfd1 {[%clk 0:01:16]}  Nh5 {[%clk 0:00:39]} 22. Rab1 {[%clk 0:01:03]}  Rfe8 {[%clk 0:00:38]} 23. b3 {[%clk 0:00:54]}  Bc3 {[%clk 0:00:35]} 24. Qg5 {[%clk 0:00:52]}  Qf2 {[%clk 0:00:30]} 25. Bd3 {[%clk 0:00:46]}  Bf6 {[%clk 0:00:22]} 26. Qd2 {[%clk 0:00:42]}  Qh4 {[%clk 0:00:22]} 27. Be4 {[%clk 0:00:39]}  Ng3+ {[%clk 0:00:20]} 28. Kg1 {[%clk 0:00:39]}  Nxe4 {[%clk 0:00:20]} 29. fxe4 {[%clk 0:00:40]}  Rxe4 {[%clk 0:00:20]} 30. Qf2 {[%clk 0:00:39]}  Qg5 {[%clk 0:00:17]} 31. Rf1 {[%clk 0:00:37]}  Bg7 {[%clk 0:00:13]} 32. Qxf7 {[%clk 0:00:33]}  Re2 {[%clk 0:00:13]} 33. Rf2 {[%clk 0:00:33]}  Rf8 {[%clk 0:00:12]} 34. Rxe2 {[%clk 0:00:17]}  Rxf7 {[%clk 0:00:12]} 35. Rbe1 {[%clk 0:00:16]}  Bf6 {[%clk 0:00:10]} 36. h3 {[%clk 0:00:16]}  Kg7 {[%clk 0:00:10]} 37. Re8 {[%clk 0:00:15]}  Bc3 {[%clk 0:00:10]} 38. Rd1 {[%clk 0:00:11]}  Qg3 {[%clk 0:00:09]} 39. Re2 {[%clk 0:00:09]}  Rf5 {[%clk 0:00:06]} 40. Ne7 {[%clk 0:00:08]}  Re5 {[%clk 0:00:06]} 41. Rxe5 {[%clk 0:00:06]}  Bxe5 {[%clk 0:00:06]} 42. Nc6 {[%clk 0:00:05]}  Bc3 {[%clk 0:00:06]} 43. Ne7 {[%clk 0:00:04]}  Qe5 {[%clk 0:00:05]} 44. Nc6 {[%clk 0:00:03]}  Qe2 {[%clk 0:00:05]} 45. Rf1 {[%clk 0:00:03]}  Bf6 {[%clk 0:00:04]} 46. Rf2 {[%clk 0:00:03]}  Qe1+ {[%clk 0:00:03]} 47. Rf1 {[%clk 0:00:04]}  Qe3+ {[%clk 0:00:03]} 48. Rf2 {[%clk 0:00:04]}  Bh4 {[%clk 0:00:03]} 49. Kh2 {[%clk 0:00:04]}  Qxf2 {[%clk 0:00:03]} 50. c4 {[%clk 0:00:04]}  Bg3+ {[%clk 0:00:03]} 51. Kh1 {[%clk 0:00:05]}  Qf1# {[%clk 0:00:03]} 0-1


[Site "https://www.chess.com"]

[Event "Titled Tuesday Blitz December 13 Early 2022"]
[White "Bashirli, Saadat"]
[Black "Stanisz, Patryk"]
[WhiteFideId "13429990"]
[BlackFideId "1123106"]
[WhiteElo "1408"]
[BlackElo "2069"]
[Result "0-1"]
[Round "09"]
[TimeControl "180+1"]
[Date "2022.12.14"]
[WhiteClock "0:00:11"]
[BlackClock "0:00:09"]

1. d4 {[%clk 0:03:00]}  d5 {[%clk 0:02:59]} 2. c4 {[%clk 0:03:00]}  c6 {[%clk 0:02:59]} 3. Nc3 {[%clk 0:02:58]}  Nf6 {[%clk 0:02:59]} 4. e3 {[%clk 0:02:52]}  e6 {[%clk 0:02:56]} 5. Qc2 {[%clk 0:02:52]}  Nbd7 {[%clk 0:02:56]} 6. Nf3 {[%clk 0:02:50]}  Bd6 {[%clk 0:02:52]} 7. Be2 {[%clk 0:02:47]}  O-O {[%clk 0:02:51]} 8. O-O {[%clk 0:02:46]}  b6 {[%clk 0:02:52]} 9. b3 {[%clk 0:02:46]}  Bb7 {[%clk 0:02:51]} 10. Bb2 {[%clk 0:02:46]}  Rc8 {[%clk 0:02:51]} 11. Rfd1 {[%clk 0:02:45]}  Qe7 {[%clk 0:02:49]} 12. e4 {[%clk 0:02:42]}  dxe4 {[%clk 0:02:49]} 13. Nxe4 {[%clk 0:02:43]}  Nxe4 {[%clk 0:02:50]} 14. Qxe4 {[%clk 0:02:44]}  Nf6 {[%clk 0:02:47]} 15. Qh4 {[%clk 0:02:41]}  c5 {[%clk 0:02:45]} 16. Rac1 {[%clk 0:02:32]}  Rfd8 {[%clk 0:02:41]} 17. dxc5 {[%clk 0:02:16]}  Bxc5 {[%clk 0:02:38]} 18. Bxf6 {[%clk 0:02:13]}  Qxf6 {[%clk 0:02:39]} 19. Qxf6 {[%clk 0:02:12]}  gxf6 {[%clk 0:02:40]} 20. h3 {[%clk 0:02:08]}  Ba3 {[%clk 0:02:35]} 21. Rxd8+ {[%clk 0:02:05]}  Rxd8 {[%clk 0:02:36]} 22. Rd1 {[%clk 0:02:06]}  Rxd1+ {[%clk 0:02:36]} 23. Bxd1 {[%clk 0:02:07]}  Be4 {[%clk 0:02:35]} 24. Nd2 {[%clk 0:02:05]}  Bd3 {[%clk 0:02:32]} 25. Kh2 {[%clk 0:01:55]}  Bb4 {[%clk 0:02:28]} 26. Nf3 {[%clk 0:01:46]}  Bc5 {[%clk 0:02:25]} 27. Kg3 {[%clk 0:01:44]}  Kg7 {[%clk 0:01:57]} 28. Nd2 {[%clk 0:01:39]}  Bb4 {[%clk 0:01:52]} 29. Nf3 {[%clk 0:01:39]}  Bd6+ {[%clk 0:01:50]} 30. Kg4 {[%clk 0:01:34]}  f5+ {[%clk 0:01:36]} 31. Kh4 {[%clk 0:01:32]}  Bf4 {[%clk 0:01:22]} 32. Nd4 {[%clk 0:01:27]}  Kg6 {[%clk 0:01:09]} 33. Nb5 {[%clk 0:01:13]}  Bf1 {[%clk 0:01:03]} 34. Bf3 {[%clk 0:01:05]}  a5 {[%clk 0:01:02]} 35. Nc3 {[%clk 0:01:00]}  Be5 {[%clk 0:00:55]} 36. Na4 {[%clk 0:00:58]}  Bd4 {[%clk 0:00:54]} 37. Kg3 {[%clk 0:00:48]}  Bd3 {[%clk 0:00:48]} 38. Bd1 {[%clk 0:00:35]}  Be4 {[%clk 0:00:33]} 39. f3 {[%clk 0:00:32]}  Bb1 {[%clk 0:00:33]} 40. a3 {[%clk 0:00:25]}  e5 {[%clk 0:00:33]} 41. b4 {[%clk 0:00:20]}  axb4 {[%clk 0:00:29]} 42. axb4 {[%clk 0:00:21]}  Kf6 {[%clk 0:00:28]} 43. Bb3 {[%clk 0:00:18]}  Bd3 {[%clk 0:00:24]} 44. c5 {[%clk 0:00:16]}  f4+ {[%clk 0:00:17]} 45. Kh2 {[%clk 0:00:15]}  bxc5 {[%clk 0:00:13]} 46. bxc5 {[%clk 0:00:15]}  Bb5 {[%clk 0:00:14]} 47. Nb6 {[%clk 0:00:14]}  Bc6 {[%clk 0:00:09]} 48. Na4 {[%clk 0:00:08]}  Kg5 {[%clk 0:00:06]} 49. Kh1 {[%clk 0:00:05]}  f5 {[%clk 0:00:06]} 50. Kh2 {[%clk 0:00:04]}  e4 {[%clk 0:00:06]} 51. fxe4 {[%clk 0:00:05]}  fxe4 {[%clk 0:00:07]} 52. Bc2 {[%clk 0:00:06]}  e3 {[%clk 0:00:06]} 53. Bd3 {[%clk 0:00:03]}  Bxa4 {[%clk 0:00:06]} 54. Be2 {[%clk 0:00:01]}  Bc6 {[%clk 0:00:06]} 55. Bd3 {[%clk 0:00:02]}  Kf6 {[%clk 0:00:05]} 56. Be2 {[%clk 0:00:03]}  Ke5 {[%clk 0:00:06]} 57. Kg1 {[%clk 0:00:04]}  Bxc5 {[%clk 0:00:07]} 58. Kf1 {[%clk 0:00:05]}  Be4 {[%clk 0:00:07]} 59. Ke1 {[%clk 0:00:06]}  Bd4 {[%clk 0:00:07]} 60. Kf1 {[%clk 0:00:06]}  Bc3 {[%clk 0:00:07]} 61. Kg1 {[%clk 0:00:07]}  Kd4 {[%clk 0:00:06]} 62. Kf1 {[%clk 0:00:08]}  Bd3 {[%clk 0:00:07]} 63. Bxd3 {[%clk 0:00:07]}  Kxd3 {[%clk 0:00:08]} 64. Kg1 {[%clk 0:00:08]}  e2 {[%clk 0:00:08]} 65. Kh2 {[%clk 0:00:09]}  e1=Q {[%clk 0:00:08]} 66. g3 {[%clk 0:00:10]}  Qxg3+ {[%clk 0:00:08]} 67. Kh1 {[%clk 0:00:10]}  Qxh3+ {[%clk 0:00:09]} 68. Kg1 {[%clk 0:00:11]}  Bd4# {[%clk 0:00:09]} 0-1


[Site "https://www.chess.com"]

[Event "Titled Tuesday Blitz December 13 Early 2022"]
[White "Bluebaum, Matthias"]
[Black "Timofeev, Artyom"]
[WhiteFideId "24651516"]
[BlackFideId "4140419"]
[WhiteElo "2634"]
[BlackElo "2586"]
[Result "1-0"]
[Round "09"]
[TimeControl "180+1"]
[Date "2022.12.13"]
[WhiteClock "0:00:17"]
[BlackClock "0:00:25"]

1. d4 {[%clk 0:03:00]}  d5 {[%clk 0:02:59]} 2. c4 {[%clk 0:03:01]}  e6 {[%clk 0:02:59]} 3. Nc3 {[%clk 0:03:01]}  c6 {[%clk 0:02:59]} 4. Nf3 {[%clk 0:03:00]}  dxc4 {[%clk 0:02:56]} 5. e4 {[%clk 0:03:01]}  b5 {[%clk 0:02:55]} 6. Be2 {[%clk 0:03:01]}  Bb7 {[%clk 0:02:55]} 7. Qc2 {[%clk 0:03:02]}  Nd7 {[%clk 0:02:53]} 8. O-O {[%clk 0:03:02]}  Ngf6 {[%clk 0:02:49]} 9. b3 {[%clk 0:03:01]}  cxb3 {[%clk 0:02:48]} 10. axb3 {[%clk 0:03:01]}  Be7 {[%clk 0:02:47]} 11. e5 {[%clk 0:03:02]}  Nd5 {[%clk 0:02:47]} 12. Nxd5 {[%clk 0:03:02]}  cxd5 {[%clk 0:02:37]} 13. Bxb5 {[%clk 0:03:01]}  O-O {[%clk 0:02:36]} 14. Bd2 {[%clk 0:02:56]}  h6 {[%clk 0:02:32]} 15. Rfc1 {[%clk 0:02:53]}  a6 {[%clk 0:02:12]} 16. Ba5 {[%clk 0:02:11]}  Qc8 {[%clk 0:01:56]} 17. Qd1 {[%clk 0:01:42]}  axb5 {[%clk 0:01:52]} 18. Rxc8 {[%clk 0:01:42]}  Rfxc8 {[%clk 0:01:52]} 19. h4 {[%clk 0:01:38]}  b4 {[%clk 0:01:49]} 20. Ne1 {[%clk 0:01:30]}  Ra6 {[%clk 0:01:46]} 21. g3 {[%clk 0:00:57]}  Rca8 {[%clk 0:01:43]} 22. Qc2 {[%clk 0:00:53]}  Rc6 {[%clk 0:01:40]} 23. Qe2 {[%clk 0:00:52]}  Rca6 {[%clk 0:01:39]} 24. Qc2 {[%clk 0:00:46]}  Rc6 {[%clk 0:01:39]} 25. Qd2 {[%clk 0:00:33]}  Rca6 {[%clk 0:01:35]} 26. Rc1 {[%clk 0:00:32]}  Rxa5 {[%clk 0:01:13]} 27. Rc7 {[%clk 0:00:32]}  Ra2 {[%clk 0:01:09]} 28. Qe3 {[%clk 0:00:32]}  Ba6 {[%clk 0:01:05]} 29. Rxd7 {[%clk 0:00:26]}  Re2 {[%clk 0:01:04]} 30. Qc1 {[%clk 0:00:24]}  Rc8 {[%clk 0:01:03]} 31. Qa1 {[%clk 0:00:24]}  Bf8 {[%clk 0:00:51]} 32. Qxa6 {[%clk 0:00:24]}  Rxe1+ {[%clk 0:00:51]} 33. Kg2 {[%clk 0:00:24]}  Rc2 {[%clk 0:00:48]} 34. Qb7 {[%clk 0:00:17]}  Rb1 {[%clk 0:00:25]} 35. Rxf7 {[%clk 0:00:17]}  Rxb3 {[%clk 0:00:25]} 36. Rf4 {[%clk 0:00:17]} 1-0


[Site "https://www.chess.com"]

[Event "Titled Tuesday Blitz December 13 Early 2022"]
[White "Bochnicka, Vladimir"]
[Black "Manelyuk, Daniil"]
[WhiteFideId "14943450"]
[BlackFideId "44173920"]
[WhiteElo "2239"]
[BlackElo "2210"]
[Result "1-0"]
[Round "09"]
[TimeControl "180+1"]
[Date "2022.12.14"]
[WhiteClock "0:00:43"]
[BlackClock "0:00:36"]

1. e4 {[%clk 0:03:00]}  c6 {[%clk 0:02:58]} 2. d4 {[%clk 0:02:59]}  d5 {[%clk 0:02:58]} 3. e5 {[%clk 0:03:00]}  Bf5 {[%clk 0:02:58]} 4. h4 {[%clk 0:02:59]}  h5 {[%clk 0:02:57]} 5. c4 {[%clk 0:02:58]}  e6 {[%clk 0:02:56]} 6. Nc3 {[%clk 0:02:58]}  Nd7 {[%clk 0:02:53]} 7. cxd5 {[%clk 0:02:58]}  cxd5 {[%clk 0:02:52]} 8. Bd3 {[%clk 0:02:59]}  Bxd3 {[%clk 0:02:51]} 9. Qxd3 {[%clk 0:03:00]}  a6 {[%clk 0:02:51]} 10. Nf3 {[%clk 0:02:57]}  Ne7 {[%clk 0:02:51]} 11. Bg5 {[%clk 0:02:57]}  Qb6 {[%clk 0:02:50]} 12. O-O {[%clk 0:02:44]}  Nf5 {[%clk 0:02:46]} 13. Nxd5 {[%clk 0:02:32]}  exd5 {[%clk 0:02:41]} 14. Qxf5 {[%clk 0:02:32]}  Qe6 {[%clk 0:02:40]} 15. Qxe6+ {[%clk 0:02:28]}  fxe6 {[%clk 0:02:41]} 16. Rac1 {[%clk 0:02:29]}  Be7 {[%clk 0:02:20]} 17. Rc7 {[%clk 0:02:26]}  Rb8 {[%clk 0:02:18]} 18. Rfc1 {[%clk 0:02:20]}  Bxg5 {[%clk 0:02:16]} 19. Nxg5 {[%clk 0:02:19]}  Ke7 {[%clk 0:02:17]} 20. R1c3 {[%clk 0:02:02]}  Rhf8 {[%clk 0:02:13]} 21. Rb3 {[%clk 0:02:00]}  Rf4 {[%clk 0:02:07]} 22. Nf3 {[%clk 0:01:50]}  b5 {[%clk 0:02:01]} 23. Rbc3 {[%clk 0:01:49]}  b4 {[%clk 0:01:39]} 24. R3c6 {[%clk 0:01:44]}  b3 {[%clk 0:01:37]} 25. a3 {[%clk 0:01:43]}  Kd8 {[%clk 0:01:17]} 26. Ng5 {[%clk 0:01:28]}  Nf8 {[%clk 0:01:16]} 27. Nf7+ {[%clk 0:01:23]}  Ke8 {[%clk 0:01:14]} 28. Nd6+ {[%clk 0:01:24]}  Kd8 {[%clk 0:01:14]} 29. Rxg7 {[%clk 0:01:10]}  Rxd4 {[%clk 0:01:10]} 30. Nb7+ {[%clk 0:00:49]}  Rxb7 {[%clk 0:00:44]} 31. Rxb7 {[%clk 0:00:48]}  Ng6 {[%clk 0:00:40]} 32. Rxa6 {[%clk 0:00:44]}  Nxe5 {[%clk 0:00:36]} 33. Ra8# {[%clk 0:00:43]} 1-0


[Site "https://www.chess.com"]

[Event "Titled Tuesday Blitz December 13 Early 2022"]
[White "Bogaudinov, Rushan"]
[Black "Tarnowska, Aleksandra"]
[WhiteFideId "4129288"]
[BlackFideId "1180967"]
[WhiteElo "2028"]
[BlackElo "1776"]
[Result "1-0"]
[Round "09"]
[TimeControl "180+1"]
[Date "2022.12.14"]
[WhiteClock "0:01:39"]
[BlackClock "0:00:02"]

1. a3 {[%clk 0:02:57]}  e5 {[%clk 0:02:59]} 2. e3 {[%clk 0:02:57]}  d5 {[%clk 0:02:58]} 3. Nf3 {[%clk 0:02:53]}  Nd7 {[%clk 0:02:51]} 4. d4 {[%clk 0:02:52]}  e4 {[%clk 0:02:42]} 5. Nfd2 {[%clk 0:02:51]}  Ngf6 {[%clk 0:02:42]} 6. c4 {[%clk 0:02:51]}  c6 {[%clk 0:02:42]} 7. Nc3 {[%clk 0:02:51]}  Be7 {[%clk 0:02:10]} 8. b4 {[%clk 0:02:48]}  O-O {[%clk 0:02:09]} 9. Bb2 {[%clk 0:02:43]}  Re8 {[%clk 0:02:02]} 10. Be2 {[%clk 0:02:41]}  Nf8 {[%clk 0:02:02]} 11. Rc1 {[%clk 0:02:35]}  a6 {[%clk 0:01:53]} 12. cxd5 {[%clk 0:02:30]}  cxd5 {[%clk 0:01:53]} 13. Nb3 {[%clk 0:02:26]}  b6 {[%clk 0:01:35]} 14. b5 {[%clk 0:02:20]}  axb5 {[%clk 0:01:30]} 15. Nxb5 {[%clk 0:02:19]}  Ne6 {[%clk 0:01:21]} 16. O-O {[%clk 0:02:19]}  Ba6 {[%clk 0:01:11]} 17. a4 {[%clk 0:02:16]}  Bb4 {[%clk 0:01:05]} 18. Bc3 {[%clk 0:02:00]}  Qe7 {[%clk 0:00:58]} 19. Qd2 {[%clk 0:01:59]}  Bxc3 {[%clk 0:00:46]} 20. Rxc3 {[%clk 0:02:00]}  Rec8 {[%clk 0:00:43]} 21. Rfc1 {[%clk 0:02:00]}  Rxc3 {[%clk 0:00:26]} 22. Rxc3 {[%clk 0:01:57]}  Bxb5 {[%clk 0:00:24]} 23. Bxb5 {[%clk 0:01:56]}  Qa3 {[%clk 0:00:25]} 24. Nc5 {[%clk 0:01:49]}  Qa1+ {[%clk 0:00:11]} 25. Rc1 {[%clk 0:01:48]}  Qa3 {[%clk 0:00:09]} 26. Nd7 {[%clk 0:01:42]}  Nxd7 {[%clk 0:00:08]} 27. Bxd7 {[%clk 0:01:43]}  Ng5 {[%clk 0:00:05]} 28. h4 {[%clk 0:01:41]}  Nf3+ {[%clk 0:00:02]} 29. gxf3 {[%clk 0:01:41]}  exf3 {[%clk 0:00:03]} 30. Qc3 {[%clk 0:01:39]}  h6 {[%clk 0:00:02]} 31. Qxa3 {[%clk 0:01:39]} 1-0


[Site "https://www.chess.com"]

[Event "Titled Tuesday Blitz December 13 Early 2022"]
[White "Bruned, Boris"]
[Black "Ljukin, Sergei"]
[WhiteFideId "621790"]
[BlackFideId "14102200"]
[WhiteElo "2049"]
[BlackElo "2312"]
[Result "0-1"]
[Round "09"]
[TimeControl "180+1"]
[Date "2022.12.14"]
[WhiteClock "0:00:06"]
[BlackClock "0:00:35"]

1. b3 {[%clk 0:03:00]}  e5 {[%clk 0:02:42]} 2. Bb2 {[%clk 0:03:00]}  Nc6 {[%clk 0:02:42]} 3. e3 {[%clk 0:03:01]}  d5 {[%clk 0:02:40]} 4. Bb5 {[%clk 0:03:01]}  Bd6 {[%clk 0:02:40]} 5. f4 {[%clk 0:03:01]}  Qe7 {[%clk 0:02:40]} 6. Nf3 {[%clk 0:02:59]}  e4 {[%clk 0:02:29]} 7. Bxg7 {[%clk 0:02:43]}  exf3 {[%clk 0:02:29]} 8. Qxf3 {[%clk 0:02:40]}  f6 {[%clk 0:02:26]} 9. Bxh8 {[%clk 0:02:40]}  Be6 {[%clk 0:02:25]} 10. Nc3 {[%clk 0:02:10]}  O-O-O {[%clk 0:02:24]} 11. Nxd5 {[%clk 0:02:05]}  Bxd5 {[%clk 0:02:20]} 12. Qxd5 {[%clk 0:02:06]}  Be5 {[%clk 0:02:20]} 13. Qf3 {[%clk 0:01:53]}  Bxa1 {[%clk 0:02:19]} 14. Bxc6 {[%clk 0:01:54]}  bxc6 {[%clk 0:02:18]} 15. Qxc6 {[%clk 0:01:55]}  Qd6 {[%clk 0:02:14]} 16. Qa8+ {[%clk 0:01:43]}  Kd7 {[%clk 0:02:12]} 17. Qe4 {[%clk 0:01:40]}  Ne7 {[%clk 0:02:05]} 18. Qxh7 {[%clk 0:01:36]}  Bb2 {[%clk 0:01:35]} 19. Qh5 {[%clk 0:00:45]}  Kc8 {[%clk 0:01:05]} 20. d3 {[%clk 0:00:38]}  Nd5 {[%clk 0:00:58]} 21. Qh3+ {[%clk 0:00:26]}  Kb8 {[%clk 0:00:56]} 22. O-O {[%clk 0:00:23]}  Nxe3 {[%clk 0:00:55]} 23. Rf2 {[%clk 0:00:09]}  Bd4 {[%clk 0:00:50]} 24. Kh1 {[%clk 0:00:09]}  Nd1 {[%clk 0:00:44]} 25. Rf1 {[%clk 0:00:06]}  Nf2+ {[%clk 0:00:43]} 26. Rxf2 {[%clk 0:00:06]}  Bxf2 {[%clk 0:00:43]} 27. Qf3 {[%clk 0:00:07]}  Bd4 {[%clk 0:00:37]} 28. Bg7 {[%clk 0:00:06]}  Qe7 {[%clk 0:00:35]} 0-1


[Site "https://www.chess.com"]

[Event "Titled Tuesday Blitz December 13 Early 2022"]
[White "Budrewicz, Krzysztof"]
[Black "Moiseenko, Alexander"]
[WhiteFideId "1127950"]
[BlackFideId "14102560"]
[WhiteElo "2636"]
[BlackElo "2793"]
[Result "0-1"]
[Round "09"]
[TimeControl "180+1"]
[Date "2022.12.14"]
[WhiteClock "0:00:05"]
[BlackClock "0:00:20"]

1. d4 {[%clk 0:03:00]}  Nf6 {[%clk 0:02:56]} 2. c4 {[%clk 0:03:00]}  e6 {[%clk 0:02:56]} 3. Nf3 {[%clk 0:03:00]}  Bb4+ {[%clk 0:02:56]} 4. Bd2 {[%clk 0:03:00]}  Qe7 {[%clk 0:02:55]} 5. e3 {[%clk 0:03:00]}  O-O {[%clk 0:02:54]} 6. Bd3 {[%clk 0:03:00]}  b6 {[%clk 0:02:49]} 7. Nc3 {[%clk 0:03:00]}  Bb7 {[%clk 0:02:48]} 8. Qc2 {[%clk 0:03:00]}  d6 {[%clk 0:02:37]} 9. a3 {[%clk 0:02:57]}  Bxc3 {[%clk 0:02:37]} 10. Bxc3 {[%clk 0:02:57]}  Nbd7 {[%clk 0:02:30]} 11. e4 {[%clk 0:02:56]}  c5 {[%clk 0:02:25]} 12. O-O {[%clk 0:02:52]}  cxd4 {[%clk 0:02:26]} 13. Nxd4 {[%clk 0:02:46]}  Nc5 {[%clk 0:02:24]} 14. f3 {[%clk 0:02:46]}  Nxd3 {[%clk 0:02:21]} 15. Qxd3 {[%clk 0:02:46]}  Rac8 {[%clk 0:02:20]} 16. Rac1 {[%clk 0:02:44]}  Rfd8 {[%clk 0:02:21]} 17. Rfd1 {[%clk 0:02:37]}  a6 {[%clk 0:02:16]} 18. Qe2 {[%clk 0:02:23]}  Nd7 {[%clk 0:02:15]} 19. b3 {[%clk 0:02:19]}  Ne5 {[%clk 0:02:15]} 20. f4 {[%clk 0:02:13]}  Ng6 {[%clk 0:02:14]} 21. g3 {[%clk 0:02:12]}  Ba8 {[%clk 0:02:07]} 22. a4 {[%clk 0:02:11]}  Qb7 {[%clk 0:02:03]} 23. Re1 {[%clk 0:02:10]}  Re8 {[%clk 0:01:59]} 24. f5 {[%clk 0:01:36]}  Ne5 {[%clk 0:01:49]} 25. Rcd1 {[%clk 0:01:21]}  d5 {[%clk 0:01:39]} 26. Nc2 {[%clk 0:00:56]}  dxe4 {[%clk 0:00:50]} 27. Bxe5 {[%clk 0:00:38]}  e3 {[%clk 0:00:50]} 28. Nxe3 {[%clk 0:00:26]}  Qh1+ {[%clk 0:00:48]} 29. Kf2 {[%clk 0:00:27]}  Qxh2+ {[%clk 0:00:48]} 30. Kf1 {[%clk 0:00:26]}  Qh3+ {[%clk 0:00:48]} 31. Kf2 {[%clk 0:00:23]}  Rc5 {[%clk 0:00:38]} 32. Bf4 {[%clk 0:00:16]}  Rxf5 {[%clk 0:00:32]} 33. Nxf5 {[%clk 0:00:16]}  Qg2+ {[%clk 0:00:31]} 34. Ke3 {[%clk 0:00:14]}  exf5+ {[%clk 0:00:31]} 35. Kd2 {[%clk 0:00:15]}  Rxe2+ {[%clk 0:00:30]} 36. Rxe2 {[%clk 0:00:15]}  Qc6 {[%clk 0:00:30]} 37. Rde1 {[%clk 0:00:14]}  h6 {[%clk 0:00:29]} 38. Re8+ {[%clk 0:00:14]}  Kh7 {[%clk 0:00:30]} 39. R1e7 {[%clk 0:00:14]}  b5 {[%clk 0:00:28]} 40. axb5 {[%clk 0:00:13]}  axb5 {[%clk 0:00:29]} 41. cxb5 {[%clk 0:00:14]}  Qxb5 {[%clk 0:00:26]} 42. Rxa8 {[%clk 0:00:13]}  Qd5+ {[%clk 0:00:26]} 43. Kc3 {[%clk 0:00:13]}  Qc5+ {[%clk 0:00:24]} 44. Kb2 {[%clk 0:00:12]}  Qxe7 {[%clk 0:00:24]} 45. Ra5 {[%clk 0:00:09]}  g5 {[%clk 0:00:21]} 46. Be5 {[%clk 0:00:09]}  f6 {[%clk 0:00:21]} 47. Bc3 {[%clk 0:00:08]}  Kg6 {[%clk 0:00:20]} 48. Ra6 {[%clk 0:00:05]}  Qe2+ {[%clk 0:00:20]} 0-1


[Site "https://www.chess.com"]